{"text_format":"1","workbook":"xlsx","n_sheets":3,"sheets":["Bestillingsskema","Trykkerier","data"],"not_rendered":{"charts":0,"images":20,"macros":0,"external_links":0,"defined_names":0,"comments":0,"pivot_tables":0},"unopened":[],"bounds":{"document_bytes":16777216,"sheet_cells":100000,"rows_first":2000,"rows_last":500,"rows_between":2000,"halvings":0,"cell_chars":16384,"cell_head_chars":4096},"cells_cut":0,"cells_raw":0,"read":"whole","date_system":"1900"}

{"sheet":"Bestillingsskema","index":0,"n_rows":109,"n_cols":16,"rows_kept":109,"cut":false,"hidden":false,"merged":[[103,0,105,0],[89,0,91,0],[94,0,96,0],[99,0,101,0],[44,0,46,0],[49,0,51,0],[54,0,56,0],[59,0,61,0],[64,0,66,0],[69,0,71,0],[6,3,6,7],[6,8,6,13],[74,0,76,0],[79,0,81,0],[84,0,86,0],[19,0,21,0],[14,0,16,0],[24,0,26,0],[29,0,31,0],[34,0,36,0],[39,0,41,0]]}
[null,"Bestillings skema til HOLD"]
[]
[null,"Hold:"]
[null,"Navn på bestiller: "]
[null,"Dato for Bestillingen:"]
[null,"Sendes til kontakt@hvik.dk"]
["Produkt","Beskrivelse","Pris","Junior størrelser",null,null,null,null,"Senior størrelser",null,null,null,null,null,"Antal","Pris"]
[]
["Hockey Camp Kit : Warrior Hockey T + Alpha Short + Core Skate socks + Gym Bag",null,null,"XSB","SB","MB","LB","XLB","S","M","L","XL","XXL","XXXL","Antal","Pris"]
[null,"Senior sizes  ",350,null,null,null,null,null,null,null,null,null,null,null,{"$f":"SUM(D10:N10)","v":0},{"$f":"SUM(O10*C10)","v":0}]
[null,"Junior Sizes ",{"$f":"244*1.25","v":305},null,null,null,null,null,null,null,null,null,null,null,{"$f":"SUM(D11:N11)","v":0},{"$f":"SUM(O11*C11)","v":0}]
[]
[]
["Hockey Camp Kit : Warrior Hockey T + Alpha Short + Gym Bag",null,null,"XSB","SB","MB","LB","XLB","S","M","L","XL","XXL","XXXL","Antal","Pris"]
[null,"Senior sizes  ",{"$f":"244*1.25","v":305},null,null,null,null,null,null,null,null,null,null,null,{"$f":"SUM(D15:N15)","v":0},{"$f":"SUM(O15*C15)","v":0}]
[null,"Junior Sizes ",{"$f":"216*1.25","v":270},null,null,null,null,null,null,null,null,null,null,null,{"$f":"SUM(D16:N16)","v":0},{"$f":"SUM(O16*C16)","v":0}]
[]
[]
["Warrior Hockey Tee ",null,null,"XSB","SB","MB","LB","XLB","S","M","L","XL","XXL","XXXL","Antal","Pris"]
[null,"Senior sizes  ",{"$f":"92*1.25","v":115},null,null,null,null,null,null,null,null,null,null,null,{"$f":"SUM(D20:N20)","v":0},{"$f":"SUM(O20*C20)","v":0}]
[null,"Junior Sizes ",95,null,null,null,null,null,null,null,null,null,null,null,{"$f":"SUM(D21:N21)","v":0},{"$f":"SUM(O21*C21)","v":0}]
[]
[]
["Warrior Alpha X Tech Tee",null,null,"XSB","SB","MB","LB","XLB","S","M","L","XL","XXL","XXXL","Antal","Pris"]
[null,"Senior sizes  ",{"$f":"152*1.25","v":190},null,null,null,null,null,null,null,null,null,null,null,{"$f":"SUM(D25:N25)","v":0},{"$f":"SUM(O25*C25)","v":0}]
[null,"Junior Sizes ",165,null,null,null,null,null,null,null,null,null,null,null,{"$f":"SUM(D26:N26)","v":0},{"$f":"SUM(O26*C26)","v":0}]
[]
[]
["Warrior Alpha X Cotton Feel Tee",null,null,"XSB","SB","MB","LB","XLB","S","M","L","XL","XXL","XXXL","Antal","Pris"]
[null,"Senior sizes  ",165,null,null,null,null,null,null,null,null,null,null,null,{"$f":"SUM(D30:N30)","v":0},{"$f":"SUM(O30*C30)","v":0}]
[null,"Junior Sizes ",140,null,null,null,null,null,null,null,null,null,null,null,{"$f":"SUM(D31:N31)","v":0},{"$f":"SUM(O31*C31)","v":0}]
[]
[]
["Warrior Hockey Hoody",null,null,"XSB","SB","MB","LB","XLB","S","M","L","XL","XXL","XXXL","Antal","Pris"]
[null,"Senior sizes  ",275,null,null,null,null,null,null,null,null,null,null,null,{"$f":"SUM(D35:N35)","v":0},{"$f":"SUM(O35*C35)","v":0}]
[null,"Junior Sizes ",250,null,null,null,null,null,null,null,null,null,null,null,{"$f":"SUM(D36:N36)","v":0},{"$f":"SUM(O36*C36)","v":0}]
[]
[]
["Warrior Ankle sock 3 pack",null,null,"OneSize",null,null,null,null,null,null,null,null,null,null,"Antal","Pris"]
[null,"Senior sizes ",{"$f":"88*1.25","v":110},"Data",null,null,null,null,null,null,null,null,null,null,{"$f":"SUM(D40:N40)","v":0},{"$f":"SUM(O40*C40)","v":0}]
[]
[]
[]
["Game Jerseys : Warrior Game Jersey (CHL Style)",null,null,"XSB","SB","MB","LB","XLB","S","M","L","XL","XXL","XXXL","Antal","Pris"]
[null,"All sizes ",350,null,null,null,null,null,null,null,null,null,null,null,{"$f":"SUM(D45:N45)","v":0},{"$f":"SUM(O45*C45)","v":0}]
[]
[]
[]
["Jogging Set : Aplha X Performance Hoodie + Alpha X Performance Pant (købes separt)",null,null,"XSB","SB","MB","LB","XLB","S","M","L","XL","XXL","XXXL","Antal","Pris"]
[null,"X Performance Hoodie Senior Sizes",{"$f":"204*1.25","v":255},null,null,6,null,null,null,null,null,null,null,null,{"$f":"SUM(D50:N50)","v":6},{"$f":"SUM(O50*C50)","v":1530}]
[null,"X Performance Hoodie Junior Sizes",{"$f":"184*1.25","v":230},null,null,null,7,null,null,null,null,null,null,null,{"$f":"SUM(D51:N51)","v":7},{"$f":"SUM(O51*C51)","v":1610}]
[]
[]
["Jogging Set : Aplha X Performance Hoodie + Alpha X Performance Pant (købes separt)",null,null,"XSB","SB","MB","LB","XLB","S","M","L","XL","XXL","XXXL","Antal","Pris"]
[null,"X Performance Pant Senior sizes",{"$f":"204*1.25","v":255},null,null,null,null,null,null,null,null,null,null,null,{"$f":"SUM(D55:N55)","v":0},{"$f":"SUM(O55*C55)","v":0}]
[null,"X Performance Pant Junior sizes",{"$f":"184*1.25","v":230},null,null,null,null,null,null,null,null,null,null,null,{"$f":"SUM(D56:N56)","v":0},{"$f":"SUM(O56*C56)","v":0}]
[]
[]
["Coach Set : Alpha X Presentation Jacket ",null,null,"XSB","SB","MB","LB","XLB","S","M","L","XL","XXL","XXXL","Antal","Pris"]
[null,"X Presentation Jacket Senior Sizes",300,null,null,null,null,null,null,null,null,null,null,null,{"$f":"SUM(D60:N60)","v":0},{"$f":"SUM(O60*C60)","v":0}]
[]
[]
[]
["Coach Set : Alpha X Presentation Pant (købes separat)",null,null,"XSB","SB","MB","LB","XLB","S","M","L","XL","XXL","XXXL","Antal","Pris"]
[null,"X Presentation Pant Senior Sizes",240,null,null,null,null,null,null,null,null,null,null,null,{"$f":"SUM(D65:N65)","v":0},{"$f":"SUM(O65*C65)","v":0}]
[]
[]
[]
["Coach Polo : Alpha X Base Polo",null,null,"XSB","SB","MB","LB","XLB","S","M","L","XL","XXL","XXXL","Antal","Pris"]
[null,"X Base Polo senior Sizes ",170,null,null,null,null,null,null,null,null,null,null,null,{"$f":"SUM(D70:N70)","v":0},{"$f":"SUM(O70*C70)","v":0}]
[]
[]
[]
["Team Winter Jacket : Covert Stadium Jacket ",null,null,"XSB","SB","MB","LB","XLB","S","M","L","XL","XXL","XXXL","Antal","Pris"]
[null,"Covert Stadium Jacket Senior Sizes",587,null,null,null,null,null,null,null,null,null,null,null,{"$f":"SUM(D75:N75)","v":0},{"$f":"SUM(O75*C75)","v":0}]
[null,"Covert Stadium Jacket Junior Sizes",494,null,null,null,null,null,null,null,null,null,null,null,{"$f":"SUM(D76:N76)","v":0},{"$f":"SUM(O76*C76)","v":0}]
[]
[]
["Team Winter Suit : Alpha Winter Suit Jacket",null,null,"XSB","SB","MB","LB","XLB","S","M","L","XL","XXL","XXXL","Antal","Pris"]
[null,"Winter Suit Jacket Senior Sizes",432,null,null,null,null,null,null,null,null,null,null,null,{"$f":"SUM(D80:N80)","v":0},{"$f":"SUM(O80*C80)","v":0}]
[null,"Winter Suit Jacket Junior Sizes",382,null,null,null,null,null,null,null,null,null,null,null,{"$f":"SUM(D81:N81)","v":0},{"$f":"SUM(O81*C81)","v":0}]
[]
[]
["Team Winter Suit : Alpha Winter Suit Pant (købes separat)",null,null,"XSB","SB","MB","LB","XLB","S","M","L","XL","XXL","XXXL","Antal","Pris"]
[null,"Winter Suit Pant Senior sizes",{"$f":"260*1.25","v":325},null,null,null,null,null,null,null,null,null,null,null,{"$f":"SUM(D85:N85)","v":0},{"$f":"SUM(O85*C85)","v":0}]
[null,"Winter Suit Pant Junior sizes",270,null,null,null,null,null,null,null,null,null,null,null,{"$f":"SUM(D86:N86)","v":0},{"$f":"SUM(O86*C86)","v":0}]
[]
[]
["Team Pro Hockey Bag ",null,null,"OneSize",null,null,null,null,null,null,null,null,null,null,"Antal","Pris"]
[null,"Size Senior ",460,null,null,null,null,null,null,null,null,null,null,null,{"$f":"SUM(D91:N91)","v":0},{"$f":"SUM(O90*C91)","v":0}]
[]
[]
[]
["Team Q20 Cargo Roll Bag",null,null,"OneSize",null,null,null,null,null,null,null,null,null,null,"Antal","Pris"]
[null,"Size Medium (Jr.)",595,null,null,null,null,null,null,null,null,null,null,null,{"$f":"SUM(D96:N96)","v":0},{"$f":"SUM(O95*C96)","v":0}]
[]
[]
[]
["QRE 20 Pro - LX20",null,null,"OneSize",null,null,null,null,null,null,null,null,null,null,"Antal","Pris"]
[null,"Senior Flex",{"$f":"855*1.25","v":1068.75},null,null,null,null,null,null,null,null,null,null,null,{"$f":"SUM(D100:N100)","v":0},{"$f":"SUM(O100*C100)","v":0}]
[]
[]
["HvIK Warrior Handsker",null,null,"!!\"","12\"","13\"","!4\"","!%\"",null,null,null,null,null,null,"Antal","Pris"]
[null,"Senior Flex",999,null,null,null,null,null,null,null,null,null,null,null,{"$f":"SUM(D104:N104)","v":0},{"$f":"SUM(O104*C104)","v":0}]
[]
[]
[]
[]
["I alt",null,null,null,null,null,null,null,null,null,null,null,null,null,{"$f":"SUM(O100+O95+O90+O86+O85+O81+O80+O76+O75+O70+O65+O60+O56+O55+O51+O50+O45+O40+O36+O35+O31+O30+O26+O25+O21+O20+O16+O15+O11+O10)","v":13},{"$f":"SUM(P100+P95+P90+P86+P85+P81+P80+P76+P75+P70+P65+P60+P56+P55+P51+P50+P45+P40+P36+P35+P31+P30+P26+P25+P21+P20+P16+P15+P11+P10)","v":3140}]

{"sheet":"Trykkerier","index":1,"n_rows":3,"n_cols":2,"rows_kept":3,"cut":false,"hidden":false,"merged":[]}
["Klubbens trykkeri","Web"]
["PNT Tryk & Broderi ApS","http://pnttryk.dk/"]
["Floorballcenteret","https://www.floorballcentret.dk/"]

{"sheet":"data","index":2,"n_rows":26,"n_cols":1,"rows_kept":26,"cut":false,"hidden":true,"merged":[]}
[]
[1]
[2]
[3]
[4]
[5]
[6]
[7]
[8]
[9]
[10]
[11]
[12]
[13]
[14]
[15]
[16]
[17]
[18]
[19]
[20]
[21]
[22]
[23]
[24]
[25]